[Event "Titled Tuesday Blitz May 23 Late 2023"]
[White "Eugene, Floryan"]
[Black "Hamitevici, Vladimir"]
[WhiteFideId "20694784"]
[BlackFideId "13902393"]
[WhiteElo "2369"]
[BlackElo "2401"]
[Result "0-1"]
[Round "07"]
[TimeControl "180+2"]
[Date "2023.05.23"]
[WhiteClock "0:00:00"]
[BlackClock "0:00:04"]

1. d4 {[%clk 0:03:00]}  Nf6 {[%clk 0:02:58]} 2. c4 {[%clk 0:03:00]}  b6 {[%clk 0:02:59]} 3. Nc3 {[%clk 0:02:59]}  Bb7 {[%clk 0:02:59]} 4. Nf3 {[%clk 0:02:58]}  g6 {[%clk 0:02:58]} 5. d5 {[%clk 0:02:46]}  Bg7 {[%clk 0:02:57]} 6. e4 {[%clk 0:02:46]}  d6 {[%clk 0:02:56]} 7. Be2 {[%clk 0:02:40]}  O-O {[%clk 0:02:54]} 8. O-O {[%clk 0:02:39]}  Nbd7 {[%clk 0:02:52]} 9. Ne1 {[%clk 0:02:29]}  Nc5 {[%clk 0:02:48]} 10. Qc2 {[%clk 0:02:27]}  e5 {[%clk 0:02:44]} 11. b4 {[%clk 0:02:25]}  Ncd7 {[%clk 0:02:44]} 12. Be3 {[%clk 0:02:23]}  c6 {[%clk 0:02:25]} 13. Nd3 {[%clk 0:02:17]}  Rc8 {[%clk 0:02:21]} 14. Qb3 {[%clk 0:02:11]}  Qc7 {[%clk 0:01:50]} 15. Rac1 {[%clk 0:02:05]}  Qb8 {[%clk 0:01:49]} 16. f3 {[%clk 0:01:51]}  c5 {[%clk 0:01:37]} 17. a3 {[%clk 0:01:44]}  Nh5 {[%clk 0:01:34]} 18. Rb1 {[%clk 0:01:40]}  f5 {[%clk 0:01:32]} 19. exf5 {[%clk 0:01:19]}  gxf5 {[%clk 0:01:31]} 20. g4 {[%clk 0:01:19]}  Nf4 {[%clk 0:00:56]} 21. Bxf4 {[%clk 0:01:05]}  exf4 {[%clk 0:00:57]} 22. Nxf4 {[%clk 0:01:05]}  fxg4 {[%clk 0:00:44]} 23. Ne6 {[%clk 0:01:05]}  Bd4+ {[%clk 0:00:31]} 24. Kh1 {[%clk 0:01:00]}  gxf3 {[%clk 0:00:20]} 25. Bxf3 {[%clk 0:00:56]}  Ne5 {[%clk 0:00:20]} 26. Ne4 {[%clk 0:00:54]}  Kh8 {[%clk 0:00:17]} 27. Nxf8 {[%clk 0:00:52]}  Rxf8 {[%clk 0:00:18]} 28. Bg2 {[%clk 0:00:52]}  Rg8 {[%clk 0:00:18]} 29. Qh3 {[%clk 0:00:42]}  Bc8 {[%clk 0:00:16]} 30. Qh6 {[%clk 0:00:41]}  Ng4 {[%clk 0:00:16]} 31. Qh4 {[%clk 0:00:31]}  Ne3 {[%clk 0:00:14]} 32. Rf7 {[%clk 0:00:30]}  Rg7 {[%clk 0:00:07]} 33. Rxg7 {[%clk 0:00:19]}  Bxg7 {[%clk 0:00:08]} 34. Ng5 {[%clk 0:00:17]}  Bf5 {[%clk 0:00:08]} 35. Re1 {[%clk 0:00:15]}  Bd4 {[%clk 0:00:08]} 36. Nf7+ {[%clk 0:00:07]}  Kg7 {[%clk 0:00:08]} 37. Nh6 {[%clk 0:00:07]}  Bg6 {[%clk 0:00:08]} 38. Ng4 {[%clk 0:00:06]}  Nf5 {[%clk 0:00:06]} 39. Qg5 {[%clk 0:00:04]}  Qf8 {[%clk 0:00:06]} 40. Qf4 {[%clk 0:00:00]}  h5 {[%clk 0:00:04]} 0-1


[Site "https://www.chess.com"]

[Event "Titled Tuesday Blitz May 23 Late 2023"]
[White "Potapova, Margarita"]
[Black "Gritsenko, Nikolai"]
[WhiteFideId "14126869"]
[BlackFideId "14112493"]
[WhiteElo "2244"]
[BlackElo "2389"]
[Result "0-1"]
[Round "07"]
[TimeControl "180+2"]
[Date "2023.05.23"]
[WhiteClock "0:00:06"]
[BlackClock "0:00:08"]

1. d4 {[%clk 0:02:58]}  d5 {[%clk 0:02:59]} 2. c4 {[%clk 0:02:58]}  Nc6 {[%clk 0:02:59]} 3. cxd5 {[%clk 0:02:51]}  Qxd5 {[%clk 0:02:58]} 4. e3 {[%clk 0:02:51]}  e5 {[%clk 0:02:58]} 5. Nc3 {[%clk 0:02:51]}  Bb4 {[%clk 0:02:58]} 6. Bd2 {[%clk 0:02:50]}  Bxc3 {[%clk 0:02:58]} 7. Bxc3 {[%clk 0:02:51]}  exd4 {[%clk 0:02:58]} 8. Ne2 {[%clk 0:02:51]}  Nf6 {[%clk 0:02:55]} 9. Nxd4 {[%clk 0:02:50]}  O-O {[%clk 0:02:55]} 10. Rc1 {[%clk 0:02:47]}  Nxd4 {[%clk 0:02:38]} 11. Bxd4 {[%clk 0:02:47]}  c6 {[%clk 0:02:30]} 12. Bxf6 {[%clk 0:02:37]}  Qxd1+ {[%clk 0:02:28]} 13. Rxd1 {[%clk 0:02:38]}  gxf6 {[%clk 0:02:28]} 14. Bc4 {[%clk 0:02:37]}  Be6 {[%clk 0:01:46]} 15. b3 {[%clk 0:02:05]}  Rfd8 {[%clk 0:01:42]} 16. Ke2 {[%clk 0:02:03]}  Kf8 {[%clk 0:01:40]} 17. Bd3 {[%clk 0:02:02]}  h6 {[%clk 0:01:39]} 18. Kf3 {[%clk 0:01:49]}  Ke7 {[%clk 0:01:36]} 19. Be4 {[%clk 0:01:41]}  a5 {[%clk 0:01:30]} 20. Rxd8 {[%clk 0:01:26]}  Rxd8 {[%clk 0:01:30]} 21. Ke2 {[%clk 0:01:26]}  Ra8 {[%clk 0:01:20]} 22. a3 {[%clk 0:01:08]}  Bxb3 {[%clk 0:01:17]} 23. Rb1 {[%clk 0:01:07]}  a4 {[%clk 0:01:17]} 24. Kf3 {[%clk 0:01:07]}  Rd8 {[%clk 0:01:16]} 25. Rb2 {[%clk 0:01:07]}  Rd7 {[%clk 0:01:10]} 26. Kg4 {[%clk 0:01:06]}  c5 {[%clk 0:01:07]} 27. Kh5 {[%clk 0:01:04]}  c4 {[%clk 0:01:06]} 28. Re2 {[%clk 0:01:04]}  c3 {[%clk 0:01:00]} 29. Kxh6 {[%clk 0:01:02]}  Rd2 {[%clk 0:00:53]} 30. Re1 {[%clk 0:01:02]}  b5 {[%clk 0:00:43]} 31. h4 {[%clk 0:01:02]}  Rxf2 {[%clk 0:00:40]} 32. h5 {[%clk 0:01:02]}  f5 {[%clk 0:00:35]} 33. Bf3 {[%clk 0:01:02]}  Kf6 {[%clk 0:00:32]} 34. e4 {[%clk 0:00:58]}  fxe4 {[%clk 0:00:28]} 35. Rxe4 {[%clk 0:00:59]}  c2 {[%clk 0:00:28]} 36. Rf4+ {[%clk 0:00:57]}  Ke5 {[%clk 0:00:26]} 37. Re4+ {[%clk 0:00:58]}  Kd6 {[%clk 0:00:24]} 38. Re1 {[%clk 0:00:53]}  Rd2 {[%clk 0:00:18]} 39. Rc1 {[%clk 0:00:05]}  Rd1 {[%clk 0:00:18]} 40. Rxc2 {[%clk 0:00:05]}  Bxc2 {[%clk 0:00:18]} 41. Kg7 {[%clk 0:00:04]}  Rf1 {[%clk 0:00:16]} 42. h6 {[%clk 0:00:04]}  Rxf3 {[%clk 0:00:16]} 43. gxf3 {[%clk 0:00:04]}  b4 {[%clk 0:00:13]} 44. axb4 {[%clk 0:00:04]}  a3 {[%clk 0:00:13]} 45. b5 {[%clk 0:00:05]}  a2 {[%clk 0:00:13]} 46. b6 {[%clk 0:00:06]}  a1=Q+ {[%clk 0:00:13]} 47. Kg8 {[%clk 0:00:06]}  Qf6 {[%clk 0:00:12]} 48. Kf8 {[%clk 0:00:06]}  Qxh6+ {[%clk 0:00:11]} 49. Ke8 {[%clk 0:00:05]}  Ba4+ {[%clk 0:00:09]} 50. Kd8 {[%clk 0:00:06]}  Qf8# {[%clk 0:00:08]} 0-1


[Site "https://www.chess.com"]

[Event "Titled Tuesday Blitz May 23 Late 2023"]
[White "Horvath, Dominik"]
[Black "Rodriguez, Santiago"]
[WhiteFideId "1642561"]
[BlackFideId "3000591"]
[WhiteElo "2407"]
[BlackElo "2249"]
[Result "1-0"]
[Round "07"]
[TimeControl "180+2"]
[Date "2023.05.23"]
[WhiteClock "0:00:06"]
[BlackClock "0:00:00"]

1. e4 {[%clk 0:02:57]}  c5 {[%clk 0:02:58]} 2. c3 {[%clk 0:02:55]}  Nf6 {[%clk 0:02:57]} 3. e5 {[%clk 0:02:54]}  Nd5 {[%clk 0:02:58]} 4. Bc4 {[%clk 0:02:55]}  e6 {[%clk 0:02:57]} 5. Nf3 {[%clk 0:02:54]}  d6 {[%clk 0:02:56]} 6. d4 {[%clk 0:02:55]}  cxd4 {[%clk 0:02:56]} 7. cxd4 {[%clk 0:02:56]}  Be7 {[%clk 0:02:55]} 8. O-O {[%clk 0:02:56]}  O-O {[%clk 0:02:55]} 9. Qe2 {[%clk 0:02:56]}  Nc6 {[%clk 0:02:52]} 10. Qe4 {[%clk 0:02:52]}  Bd7 {[%clk 0:02:49]} 11. Bb3 {[%clk 0:02:50]}  Rc8 {[%clk 0:02:45]} 12. Nc3 {[%clk 0:02:33]}  dxe5 {[%clk 0:02:24]} 13. dxe5 {[%clk 0:02:32]}  Nxc3 {[%clk 0:02:24]} 14. bxc3 {[%clk 0:02:33]}  Qa5 {[%clk 0:02:20]} 15. Bh6 {[%clk 0:02:11]}  Rfd8 {[%clk 0:01:52]} 16. Bc2 {[%clk 0:01:51]}  g6 {[%clk 0:01:51]} 17. Qf4 {[%clk 0:01:34]}  Be8 {[%clk 0:01:47]} 18. Rfe1 {[%clk 0:01:24]}  Qxc3 {[%clk 0:01:41]} 19. Rac1 {[%clk 0:01:23]}  Nd4 {[%clk 0:01:36]} 20. Nxd4 {[%clk 0:00:33]}  Rxd4 {[%clk 0:00:58]} 21. Be4 {[%clk 0:00:33]}  Qb4 {[%clk 0:00:21]} 22. f3 {[%clk 0:00:33]}  Rxc1 {[%clk 0:00:13]} 23. Rxc1 {[%clk 0:00:25]}  Bc6 {[%clk 0:00:12]} 24. h3 {[%clk 0:00:21]}  Rc4 {[%clk 0:00:08]} 25. Rd1 {[%clk 0:00:19]}  Bxe4 {[%clk 0:00:06]} 26. fxe4 {[%clk 0:00:18]}  Rxe4 {[%clk 0:00:06]} 27. Qf3 {[%clk 0:00:15]}  Re1+ {[%clk 0:00:05]} 28. Kh2 {[%clk 0:00:13]}  Rxd1 {[%clk 0:00:04]} 29. Qxd1 {[%clk 0:00:14]}  Bf8 {[%clk 0:00:02]} 30. Qd8 {[%clk 0:00:14]}  Qc5 {[%clk 0:00:02]} 31. Bf4 {[%clk 0:00:12]}  Qe7 {[%clk 0:00:02]} 32. Qc8 {[%clk 0:00:12]}  Kg7 {[%clk 0:00:02]} 33. a4 {[%clk 0:00:12]}  g5 {[%clk 0:00:02]} 34. Bg3 {[%clk 0:00:12]}  h6 {[%clk 0:00:03]} 35. Qc2 {[%clk 0:00:12]}  b6 {[%clk 0:00:03]} 36. Qe4 {[%clk 0:00:13]}  Qc5 {[%clk 0:00:03]} 37. Qf3 {[%clk 0:00:12]}  Qd5 {[%clk 0:00:03]} 38. Qf6+ {[%clk 0:00:12]}  Kg8 {[%clk 0:00:03]} 39. h4 {[%clk 0:00:13]}  gxh4 {[%clk 0:00:02]} 40. Qxh4 {[%clk 0:00:13]}  Bg7 {[%clk 0:00:02]} 41. Qg4 {[%clk 0:00:14]}  Kh7 {[%clk 0:00:02]} 42. Qf4 {[%clk 0:00:13]}  Kg6 {[%clk 0:00:02]} 43. Qg4+ {[%clk 0:00:13]}  Kh7 {[%clk 0:00:02]} 44. Qf4 {[%clk 0:00:14]}  Kg8 {[%clk 0:00:02]} 45. Qg4 {[%clk 0:00:14]}  a6 {[%clk 0:00:02]} 46. Qh5 {[%clk 0:00:13]}  b5 {[%clk 0:00:02]} 47. axb5 {[%clk 0:00:13]}  axb5 {[%clk 0:00:03]} 48. Qg4 {[%clk 0:00:13]}  Qc4 {[%clk 0:00:02]} 49. Qf3 {[%clk 0:00:13]}  b4 {[%clk 0:00:02]} 50. Bf4 {[%clk 0:00:12]}  b3 {[%clk 0:00:02]} 51. Qg3 {[%clk 0:00:10]}  Kh7 {[%clk 0:00:01]} 52. Qf2 {[%clk 0:00:06]}  Qe4 {[%clk 0:00:00]} 53. Bg3 {[%clk 0:00:06]} 1-0


[Site "https://www.chess.com"]

[Event "Titled Tuesday Blitz May 23 Late 2023"]
[White "Arnold, Ken"]
[Black "Maksimovic, Bojan"]
[WhiteFideId "2056836"]
[BlackFideId "14408120"]
[WhiteElo "2430"]
[BlackElo "2468"]
[Result "0-1"]
[Round "07"]
[TimeControl "180+2"]
[Date "2023.05.23"]
[WhiteClock "0:00:11"]
[BlackClock "0:01:51"]

1. d4 {[%clk 0:03:00]}  g6 {[%clk 0:02:59]} 2. Nf3 {[%clk 0:03:00]}  Bg7 {[%clk 0:02:59]} 3. c3 {[%clk 0:03:00]}  d6 {[%clk 0:02:58]} 4. Bf4 {[%clk 0:03:00]}  Nd7 {[%clk 0:02:57]} 5. e3 {[%clk 0:03:01]}  Ngf6 {[%clk 0:02:57]} 6. Nbd2 {[%clk 0:03:01]}  O-O {[%clk 0:02:57]} 7. h3 {[%clk 0:03:01]}  b6 {[%clk 0:02:56]} 8. Bh2 {[%clk 0:03:01]}  Bb7 {[%clk 0:02:56]} 9. Be2 {[%clk 0:03:01]}  c5 {[%clk 0:02:56]} 10. O-O {[%clk 0:03:01]}  a6 {[%clk 0:02:56]} 11. a4 {[%clk 0:02:59]}  Ra7 {[%clk 0:02:56]} 12. Nc4 {[%clk 0:02:56]}  Qa8 {[%clk 0:02:55]} 13. dxc5 {[%clk 0:02:39]}  bxc5 {[%clk 0:02:53]} 14. Na5 {[%clk 0:02:29]}  Bd5 {[%clk 0:02:53]} 15. Ne1 {[%clk 0:02:10]}  Rb8 {[%clk 0:02:52]} 16. Qc1 {[%clk 0:01:50]}  h5 {[%clk 0:02:33]} 17. Bf3 {[%clk 0:01:49]}  Bxf3 {[%clk 0:02:32]} 18. Nxf3 {[%clk 0:01:49]}  Ne4 {[%clk 0:02:32]} 19. Rd1 {[%clk 0:01:45]}  Rc7 {[%clk 0:02:25]} 20. Nc4 {[%clk 0:01:42]}  Rcb7 {[%clk 0:02:23]} 21. Ra2 {[%clk 0:01:40]}  Rb3 {[%clk 0:02:22]} 22. Qc2 {[%clk 0:01:38]}  Ndf6 {[%clk 0:02:20]} 23. a5 {[%clk 0:01:35]}  R3b5 {[%clk 0:01:58]} 24. Nb6 {[%clk 0:01:24]}  Qc6 {[%clk 0:01:58]} 25. Nd2 {[%clk 0:01:15]}  Nxd2 {[%clk 0:01:57]} 26. Rxd2 {[%clk 0:01:08]}  Nd7 {[%clk 0:01:57]} 27. Nxd7 {[%clk 0:01:06]}  Qxd7 {[%clk 0:01:57]} 28. Qd3 {[%clk 0:01:02]}  Qb7 {[%clk 0:01:56]} 29. Bg3 {[%clk 0:00:53]}  Bf6 {[%clk 0:01:56]} 30. f3 {[%clk 0:00:51]}  Rb3 {[%clk 0:01:56]} 31. Bf2 {[%clk 0:00:49]}  Qc6 {[%clk 0:01:56]} 32. e4 {[%clk 0:00:47]}  R8b5 {[%clk 0:01:56]} 33. Qc4 {[%clk 0:00:41]}  Qb7 {[%clk 0:01:54]} 34. Qe2 {[%clk 0:00:32]}  Be5 {[%clk 0:01:55]} 35. g3 {[%clk 0:00:31]}  Qc7 {[%clk 0:01:51]} 36. Qc4 {[%clk 0:00:25]}  Qb7 {[%clk 0:01:45]} 37. Qe2 {[%clk 0:00:24]}  Bf6 {[%clk 0:01:46]} 38. Kg2 {[%clk 0:00:24]}  Kg7 {[%clk 0:01:46]} 39. h4 {[%clk 0:00:24]}  Qc8 {[%clk 0:01:46]} 40. Be3 {[%clk 0:00:22]}  Rb8 {[%clk 0:01:46]} 41. Qc4 {[%clk 0:00:21]}  R3b5 {[%clk 0:01:45]} 42. Qd5 {[%clk 0:00:19]}  Qc7 {[%clk 0:01:44]} 43. Re2 {[%clk 0:00:16]}  Rxa5 {[%clk 0:01:44]} 44. Rxa5 {[%clk 0:00:16]}  Qxa5 {[%clk 0:01:44]} 45. b4 {[%clk 0:00:17]}  Qb5 {[%clk 0:01:45]} 46. Rc2 {[%clk 0:00:15]}  cxb4 {[%clk 0:01:45]} 47. Qxb5 {[%clk 0:00:15]}  Rxb5 {[%clk 0:01:46]} 48. cxb4 {[%clk 0:00:15]}  Rxb4 {[%clk 0:01:47]} 49. Rc6 {[%clk 0:00:14]}  Rb2+ {[%clk 0:01:47]} 50. Kf1 {[%clk 0:00:14]}  Rb3 {[%clk 0:01:48]} 51. Bf2 {[%clk 0:00:14]}  a5 {[%clk 0:01:49]} 52. Ra6 {[%clk 0:00:14]}  Rxf3 {[%clk 0:01:48]} 53. Rxa5 {[%clk 0:00:13]}  Bd4 {[%clk 0:01:48]} 54. Ra2 {[%clk 0:00:12]}  Kf6 {[%clk 0:01:49]} 55. Kg2 {[%clk 0:00:12]}  Rxf2+ {[%clk 0:01:49]} 56. Rxf2+ {[%clk 0:00:12]}  Bxf2 {[%clk 0:01:50]} 57. Kxf2 {[%clk 0:00:11]}  Ke5 {[%clk 0:01:51]} 0-1


[Site "https://www.chess.com"]

[Event "Titled Tuesday Blitz May 23 Late 2023"]
[White "Dimitrov, Atanas"]
[Black "Guerra Tulcan, Lenin"]
[WhiteFideId "2901315"]
[BlackFideId "3601382"]
[WhiteElo "2705"]
[BlackElo "2368"]
[Result "1-0"]
[Round "07"]
[TimeControl "180+2"]
[Date "2023.05.23"]
[WhiteClock "0:00:09"]
[BlackClock "0:00:11"]

1. e4 {[%clk 0:02:36]}  c5 {[%clk 0:02:59]} 2. Nc3 {[%clk 0:02:36]}  e6 {[%clk 0:03:00]} 3. Nf3 {[%clk 0:02:37]}  Nc6 {[%clk 0:03:00]} 4. g3 {[%clk 0:02:37]}  b6 {[%clk 0:02:59]} 5. Bg2 {[%clk 0:02:37]}  Bb7 {[%clk 0:03:00]} 6. O-O {[%clk 0:02:38]}  Nge7 {[%clk 0:02:57]} 7. d4 {[%clk 0:02:33]}  cxd4 {[%clk 0:02:57]} 8. Nxd4 {[%clk 0:02:34]}  Nxd4 {[%clk 0:02:57]} 9. Qxd4 {[%clk 0:02:35]}  Nc6 {[%clk 0:02:54]} 10. Qd1 {[%clk 0:02:30]}  Be7 {[%clk 0:02:49]} 11. Be3 {[%clk 0:02:31]}  O-O {[%clk 0:02:45]} 12. Ne2 {[%clk 0:02:29]}  Ne5 {[%clk 0:02:43]} 13. h3 {[%clk 0:02:25]}  Rc8 {[%clk 0:02:37]} 14. b3 {[%clk 0:02:24]}  Qc7 {[%clk 0:02:20]} 15. c4 {[%clk 0:02:23]}  Rfd8 {[%clk 0:02:15]} 16. Rc1 {[%clk 0:02:04]}  d6 {[%clk 0:02:15]} 17. Kh2 {[%clk 0:01:59]}  Qb8 {[%clk 0:02:11]} 18. Qc2 {[%clk 0:01:58]}  Qa8 {[%clk 0:02:09]} 19. Nc3 {[%clk 0:01:51]}  Nd7 {[%clk 0:01:45]} 20. Rfd1 {[%clk 0:01:50]}  h6 {[%clk 0:01:42]} 21. Qe2 {[%clk 0:01:40]}  Nf6 {[%clk 0:01:41]} 22. Qd3 {[%clk 0:01:25]}  d5 {[%clk 0:01:06]} 23. cxd5 {[%clk 0:01:19]}  exd5 {[%clk 0:01:06]} 24. Nxd5 {[%clk 0:01:18]}  Nxd5 {[%clk 0:00:57]} 25. Rxc8 {[%clk 0:01:17]}  Qxc8 {[%clk 0:00:48]} 26. exd5 {[%clk 0:01:16]}  Bd6 {[%clk 0:00:48]} 27. Rc1 {[%clk 0:01:04]}  Qd7 {[%clk 0:00:48]} 28. h4 {[%clk 0:01:02]}  Qe7 {[%clk 0:00:45]} 29. Kg1 {[%clk 0:00:58]}  Ba3 {[%clk 0:00:43]} 30. Rd1 {[%clk 0:00:57]}  Bd6 {[%clk 0:00:36]} 31. Rc1 {[%clk 0:00:57]}  Ba3 {[%clk 0:00:35]} 32. Rc2 {[%clk 0:00:58]}  Qf6 {[%clk 0:00:33]} 33. Bd4 {[%clk 0:00:57]}  Qd6 {[%clk 0:00:32]} 34. Qf5 {[%clk 0:00:48]}  Bxd5 {[%clk 0:00:28]} 35. Qg4 {[%clk 0:00:46]}  f6 {[%clk 0:00:14]} 36. Bh3 {[%clk 0:00:16]}  Bf7 {[%clk 0:00:12]} 37. Rd2 {[%clk 0:00:12]}  Bb4 {[%clk 0:00:10]} 38. Rd1 {[%clk 0:00:12]}  Qe7 {[%clk 0:00:10]} 39. Be3 {[%clk 0:00:09]}  Rxd1+ {[%clk 0:00:09]} 40. Qxd1 {[%clk 0:00:10]}  Bc5 {[%clk 0:00:10]} 41. Bxc5 {[%clk 0:00:09]}  Qxc5 {[%clk 0:00:11]} 42. Qd8+ {[%clk 0:00:09]}  Kh7 {[%clk 0:00:11]} 43. Qd7 {[%clk 0:00:09]}  Qd5 {[%clk 0:00:11]} 44. Qxa7 {[%clk 0:00:08]}  Qd1+ {[%clk 0:00:10]} 45. Kh2 {[%clk 0:00:08]}  Qd4 {[%clk 0:00:11]} 46. Qxf7 {[%clk 0:00:08]}  Qxf2+ {[%clk 0:00:11]} 47. Bg2 {[%clk 0:00:08]}  Qxa2 {[%clk 0:00:11]} 48. Qe6 {[%clk 0:00:07]}  Qf2 {[%clk 0:00:11]} 49. Kh3 {[%clk 0:00:06]}  Kh8 {[%clk 0:00:10]} 50. Qe8+ {[%clk 0:00:02]}  Kh7 {[%clk 0:00:10]} 51. Qe6 {[%clk 0:00:03]}  Kh8 {[%clk 0:00:09]} 52. Qe8+ {[%clk 0:00:03]}  Kh7 {[%clk 0:00:09]} 53. Qb5 {[%clk 0:00:04]}  f5 {[%clk 0:00:09]} 54. Qd3 {[%clk 0:00:04]}  Kg6 {[%clk 0:00:09]} 55. Qf3 {[%clk 0:00:04]}  Qc2 {[%clk 0:00:09]} 56. Qc6+ {[%clk 0:00:04]}  Qxc6 {[%clk 0:00:08]} 57. Bxc6 {[%clk 0:00:05]}  Kf6 {[%clk 0:00:09]} 58. b4 {[%clk 0:00:05]}  g5 {[%clk 0:00:09]} 59. hxg5+ {[%clk 0:00:04]}  hxg5 {[%clk 0:00:10]} 60. b5 {[%clk 0:00:04]}  Ke5 {[%clk 0:00:10]} 61. Kg2 {[%clk 0:00:04]}  Kd4 {[%clk 0:00:09]} 62. Kf3 {[%clk 0:00:04]}  Ke5 {[%clk 0:00:09]} 63. Bd7 {[%clk 0:00:05]}  Kf6 {[%clk 0:00:09]} 64. g4 {[%clk 0:00:04]}  fxg4+ {[%clk 0:00:08]} 65. Kxg4 {[%clk 0:00:05]}  Ke5 {[%clk 0:00:08]} 66. Kxg5 {[%clk 0:00:05]}  Kd6 {[%clk 0:00:09]} 67. Bc6 {[%clk 0:00:05]}  Kc5 {[%clk 0:00:10]} 68. Kf6 {[%clk 0:00:05]}  Kb4 {[%clk 0:00:11]} 69. Ke7 {[%clk 0:00:06]}  Kc5 {[%clk 0:00:12]} 70. Kd7 {[%clk 0:00:07]}  Kb4 {[%clk 0:00:13]} 71. Kc7 {[%clk 0:00:08]}  Ka5 {[%clk 0:00:11]} 72. Kb7 {[%clk 0:00:09]} 1-0


[Site "https://www.chess.com"]

[Event "Titled Tuesday Blitz May 23 Late 2023"]
[White "Sun, Rick"]
[Black "Ladan, Nicholas"]
[WhiteFideId "30909481"]
[BlackFideId "30918855"]
[WhiteElo "2169"]
[BlackElo "2167"]
[Result "1-0"]
[Round "07"]
[TimeControl "180+2"]
[Date "2023.05.23"]
[WhiteClock "0:00:03"]
[BlackClock "0:00:00"]

1. d4 {[%clk 0:03:00]}  d5 {[%clk 0:02:59]} 2. Nc3 {[%clk 0:03:01]}  Nf6 {[%clk 0:02:58]} 3. Bf4 {[%clk 0:03:01]}  c5 {[%clk 0:02:56]} 4. e3 {[%clk 0:03:01]}  a6 {[%clk 0:02:54]} 5. Nf3 {[%clk 0:03:01]}  Nc6 {[%clk 0:02:54]} 6. dxc5 {[%clk 0:02:57]}  Bg4 {[%clk 0:02:54]} 7. Be2 {[%clk 0:02:54]}  e6 {[%clk 0:02:54]} 8. O-O {[%clk 0:02:47]}  Bxc5 {[%clk 0:02:54]} 9. Re1 {[%clk 0:02:45]}  O-O {[%clk 0:02:53]} 10. h3 {[%clk 0:02:44]}  Bh5 {[%clk 0:02:51]} 11. Ne5 {[%clk 0:02:23]}  Bxe2 {[%clk 0:02:45]} 12. Qxe2 {[%clk 0:02:21]}  Bd6 {[%clk 0:02:34]} 13. Nxc6 {[%clk 0:02:16]}  bxc6 {[%clk 0:02:35]} 14. Bxd6 {[%clk 0:02:17]}  Qxd6 {[%clk 0:02:35]} 15. e4 {[%clk 0:02:17]}  Qb4 {[%clk 0:02:26]} 16. e5 {[%clk 0:02:10]}  Nd7 {[%clk 0:02:26]} 17. Rab1 {[%clk 0:02:01]}  Rfb8 {[%clk 0:02:20]} 18. a3 {[%clk 0:01:51]}  Qf4 {[%clk 0:02:14]} 19. g3 {[%clk 0:01:37]}  Qd4 {[%clk 0:02:12]} 20. Rbd1 {[%clk 0:01:31]}  Qa7 {[%clk 0:02:12]} 21. b4 {[%clk 0:01:23]}  a5 {[%clk 0:02:04]} 22. b5 {[%clk 0:01:09]}  Qc5 {[%clk 0:02:01]} 23. Ne4 {[%clk 0:00:47]}  Qxb5 {[%clk 0:01:43]} 24. Qh5 {[%clk 0:00:33]}  g6 {[%clk 0:00:33]} 25. Qg5 {[%clk 0:00:33]}  Qb2 {[%clk 0:00:11]} 26. Qe7 {[%clk 0:00:19]}  Ra7 {[%clk 0:00:05]} 27. Nf6+ {[%clk 0:00:11]}  Nxf6 {[%clk 0:00:03]} 28. Qxa7 {[%clk 0:00:11]}  Ne4 {[%clk 0:00:02]} 29. Rc1 {[%clk 0:00:03]}  Rb5 {[%clk 0:00:02]} 30. Qa8+ {[%clk 0:00:02]}  Kg7 {[%clk 0:00:02]} 31. Qa7 {[%clk 0:00:01]}  Qxa3 {[%clk 0:00:02]} 32. Qe3 {[%clk 0:00:02]}  Qxe3 {[%clk 0:00:02]} 33. Rxe3 {[%clk 0:00:03]}  Rc5 {[%clk 0:00:02]} 34. Ra3 {[%clk 0:00:02]}  Nc3 {[%clk 0:00:01]} 35. Rca1 {[%clk 0:00:02]}  Ne2+ {[%clk 0:00:01]} 36. Kg2 {[%clk 0:00:03]}  Nd4 {[%clk 0:00:02]} 37. Rxa5 {[%clk 0:00:03]}  Rxc2 {[%clk 0:00:00]} 38. Ra8 {[%clk 0:00:03]} 1-0


[Site "https://www.chess.com"]

[Event "Titled Tuesday Blitz May 23 Late 2023"]
[White "Janaszak, Dawid"]
[Black "Annaberdiyev, Meylis"]
[WhiteFideId "1119206"]
[BlackFideId "14000563"]
[WhiteElo "2220"]
[BlackElo "2416"]
[Result "0-1"]
[Round "07"]
[TimeControl "180+2"]
[Date "2023.05.23"]
[WhiteClock "0:00:07"]
[BlackClock "0:00:18"]

1. e4 {[%clk 0:03:00]}  c5 {[%clk 0:02:59]} 2. Nc3 {[%clk 0:03:00]}  Nc6 {[%clk 0:02:59]} 3. Bb5 {[%clk 0:03:00]}  Nd4 {[%clk 0:02:59]} 4. Nf3 {[%clk 0:03:00]}  e6 {[%clk 0:02:59]} 5. O-O {[%clk 0:02:59]}  a6 {[%clk 0:03:00]} 6. Bd3 {[%clk 0:02:57]}  Nc6 {[%clk 0:03:00]} 7. e5 {[%clk 0:02:48]}  d6 {[%clk 0:02:54]} 8. exd6 {[%clk 0:02:45]}  Bxd6 {[%clk 0:02:54]} 9. Ne4 {[%clk 0:02:45]}  Nge7 {[%clk 0:02:54]} 10. Nxd6+ {[%clk 0:02:45]}  Qxd6 {[%clk 0:02:55]} 11. Re1 {[%clk 0:02:43]}  e5 {[%clk 0:02:21]} 12. b3 {[%clk 0:02:36]}  f6 {[%clk 0:02:20]} 13. Be4 {[%clk 0:02:24]}  Bf5 {[%clk 0:02:09]} 14. Ba3 {[%clk 0:02:18]}  O-O {[%clk 0:01:59]} 15. d3 {[%clk 0:02:15]}  b6 {[%clk 0:01:55]} 16. Nd2 {[%clk 0:02:08]}  Rad8 {[%clk 0:01:46]} 17. Bb2 {[%clk 0:02:00]}  Qc7 {[%clk 0:01:43]} 18. Bxf5 {[%clk 0:01:54]}  Nxf5 {[%clk 0:01:42]} 19. Ne4 {[%clk 0:01:52]}  Nfd4 {[%clk 0:01:40]} 20. Rc1 {[%clk 0:01:47]}  Qf7 {[%clk 0:01:31]} 21. c3 {[%clk 0:01:33]}  Ne6 {[%clk 0:01:31]} 22. Qc2 {[%clk 0:01:20]}  Qg6 {[%clk 0:01:28]} 23. Rcd1 {[%clk 0:01:03]}  Nf4 {[%clk 0:01:26]} 24. g3 {[%clk 0:01:01]}  f5 {[%clk 0:01:22]} 25. Kh1 {[%clk 0:00:43]}  fxe4 {[%clk 0:01:18]} 26. gxf4 {[%clk 0:00:43]}  exd3 {[%clk 0:01:18]} 27. Qd2 {[%clk 0:00:42]}  Rxf4 {[%clk 0:01:13]} 28. Rxe5 {[%clk 0:00:41]}  Nxe5 {[%clk 0:01:09]} 29. Qxf4 {[%clk 0:00:41]}  Qc6+ {[%clk 0:01:10]} 30. Kg1 {[%clk 0:00:36]}  Nf3+ {[%clk 0:01:04]} 31. Kf1 {[%clk 0:00:36]}  Nd4 {[%clk 0:00:38]} 32. Qg5 {[%clk 0:00:17]}  Qh1+ {[%clk 0:00:28]} 33. Qg1 {[%clk 0:00:17]}  Qf3 {[%clk 0:00:29]} 34. Rd2 {[%clk 0:00:15]}  Nf5 {[%clk 0:00:21]} 35. c4 {[%clk 0:00:15]}  Ne3+ {[%clk 0:00:20]} 36. Ke1 {[%clk 0:00:15]}  Nc2+ {[%clk 0:00:20]} 37. Rxc2 {[%clk 0:00:16]}  Re8+ {[%clk 0:00:17]} 38. Kf1 {[%clk 0:00:10]}  Qd1+ {[%clk 0:00:17]} 39. Kg2 {[%clk 0:00:10]}  Qxg1+ {[%clk 0:00:17]} 40. Kxg1 {[%clk 0:00:07]}  dxc2 {[%clk 0:00:18]} 0-1


[Site "https://www.chess.com"]